bitfinex/quotes_ETHUSD_20240621
["timestamp","ask_amount","ask_price","bid_price","bid_amount"]
[1718934230558,0.08699147,3526.4,3525.7,5.30376831]
[1718934231074,2.2991,3526.5,3525.9,0.4633]
[1718934231368,2.2991,3526.5,3525.9,3.4633]
[1718934231544,0.08699147,3526.4,3525.9,3.4633]
[1718934231744,2.2991,3526.5,3525.9,3.4633]
[1718934231944,0.0870058,3526.3,3525.9,4.75430819]
[1718934232148,2.2991,3526.5,3525.9,4.75430819]
[1718934232669,0.0870058,3526.4,3525.9,4.75430819]
[1718934234355,0.0870058,3526.4,3525.9,4.29100819]
[1718934234560,0.0870058,3526.4,3525.9,1.29100819]
[1718934236577,0.0870058,3526.4,3526.0,0.58908322]
[1718934237084,2.2991,3526.8,3526.0,0.58908322]
[1718934237285,0.0870488,3526.3,3526.0,0.58908322]
[1718934237502,2.2991,3526.8,3526.0,0.58908322]
[1718934237881,0.0870488,3526.7,3526.0,0.58908322]
[1718934238980,0.0870488,3526.7,3526.2,0.868]
[1718934239168,0.0870488,3526.7,3526.2,1.3313]
[1718934239370,2.2991,3527.0,3526.2,1.3313]
[1718934239581,0.08708103,3526.6,3526.2,1.3313]
[1718934239904,0.08708103,3526.5,3526.2,1.3313]
[1718934240405,2.2991,3527.0,3526.2,1.3313]
[1718934240612,0.08708103,3526.4,3526.2,1.3313]
[1718934240824,2.2991,3527.0,3526.2,1.3313]
[1718934241314,0.08708103,3526.9,3526.2,1.3313]
[1718934241868,0.08708103,3526.9,3525.7,4.136524]
[1718934241869,0.08708103,3526.9,3526.6,0.868]
[1718934242094,2.2991,3527.3,3526.7,0.4633]
[1718934242296,0.0871885,3526.8,3526.7,0.4633]
[1718934242506,2.2991,3527.3,3526.7,0.4633]
[1718934242714,0.0871885,3526.8,3526.7,0.4633]
[1718934243015,2.2991,3527.3,3526.7,0.4633]
[1718934243186,0.0871885,3526.8,3526.7,0.4633]
[1718934243388,2.2991,3527.3,3526.7,0.4633]
[1718934243596,0.0871885,3526.8,3526.7,0.4633]
[1718934243804,2.2991,3527.3,3526.7,0.4633]
[1718934244011,0.0871885,3526.8,3526.7,0.4633]
[1718934244620,2.2991,3527.3,3526.7,0.4633]
[1718934244922,2.2991,3527.3,3526.6,0.868]
[1718934245110,0.0871885,3527.2,3526.6,0.868]
[1718934245305,0.0871885,3527.2,3526.5,0.4633]
[1718934245629,0.0871885,3527.2,3526.5,0.868]
[1718934245776,2.2991,3527.3,3526.5,0.868]
[1718934246820,2.2991,3527.3,3526.3,3.0]
[1718934247130,2.2991,3527.3,3526.4,2.38479191]
[1718934250596,2.2991,3527.3,3526.6,0.868]
[1718934250940,2.2991,3527.3,3526.8,0.868]
[1718934251336,0.0843389,3527.2,3526.8,0.868]
[1718934251818,2.2991,3527.3,3526.8,0.868]
[1718934252063,2.2991,3527.3,3526.8,1.30113]
[1718934252237,0.0843389,3527.2,3526.8,1.30113]
[1718934252524,2.2991,3527.3,3526.8,1.30113]
[1718934252935,0.0843389,3527.2,3526.9,1.136137]
[1718934253298,2.2991,3527.6,3527.0,0.868]
[1718934253484,0.0843389,3527.1,3527.0,0.868]
[1718934253724,2.2991,3527.6,3527.0,1.4117267]
[1718934254026,0.08442127,3527.1,3527.0,4.4117267]
[1718934254205,2.2991,3527.6,3527.0,3.868]
[1718934254407,0.08442127,3527.1,3527.0,0.868]
[1718934254913,2.2991,3527.6,3527.0,0.868]
[1718934255123,0.08442127,3527.1,3527.0,0.868]
[1718934255318,2.2991,3527.6,3527.0,0.868]
[1718934255624,0.08442127,3527.1,3527.0,0.868]
[1718934255840,2.2991,3527.6,3527.0,1.4117267]
[1718934256050,0.08442127,3527.1,3527.0,3.5437267]
[1718934256360,2.2991,3527.8,3527.0,5.4250267]
[1718934256637,2.2991,3527.8,3527.3,0.868]
[1718934256855,0.08443917,3527.7,3527.3,0.868]
[1718934257217,2.2991,3527.8,3527.3,0.868]
[1718934257421,0.08443917,3527.6,3527.3,0.868]
[1718934257650,2.2991,3527.8,3527.3,0.868]
[1718934258254,0.08443917,3527.7,3527.3,0.868]
[1718934258467,2.2991,3527.8,3527.3,0.868]
[1718934258662,0.08443917,3527.7,3527.3,0.868]
[1718934258826,2.2991,3527.8,3527.3,0.868]
[1718934259162,0.08443917,3527.7,3527.3,0.868]
[1718934259543,2.07926649,3528.5,3527.3,1.35550267]
[1718934259544,2.2991,3528.1,3527.3,1.35550267]
[1718934261225,2.2991,3528.1,3527.6,0.868]
[1718934261564,0.08449647,3528.0,3527.4,0.868]
[1718934265488,0.08449647,3528.0,3527.4,0.92469238]
[1718934268666,0.08449647,3528.0,3527.4,0.05669238]
[1718934272157,0.08449647,3528.0,3527.5,0.868]
[1718934272865,0.08449647,3528.0,3527.9,0.868]
[1718934273169,2.2991,3528.3,3527.9,0.868]
[1718934273671,0.08511597,3528.2,3527.9,0.868]
[1718934273879,2.2991,3528.5,3527.9,0.868]
[1718934274038,0.08517325,3528.4,3528.1,0.868]
[1718934274379,0.08517325,3528.4,3528.3,0.868]
[1718934274698,2.2991,3528.8,3528.3,0.868]
[1718934274986,0.08517683,3528.7,3528.3,0.868]
[1718934275286,2.2991,3528.8,3528.3,0.868]
[1718934275453,0.08529136,3528.7,3528.3,0.868]
[1718934275799,2.2991,3528.8,3528.3,0.868]
[1718934276003,0.08529136,3528.6,3528.3,0.868]
[1718934276288,0.08529136,3528.5,3528.3,0.868]
[1718934276474,2.2991,3529.1,3528.4,0.868]
[1718934276671,0.0856743,3529.0,3528.4,0.868]
[1718934277584,2.2991,3529.1,3528.4,0.868]
[1718934277889,0.0857065,3529.0,3528.4,0.868]
[1718934282988,2.2991,3528.9,3528.2,0.868]
[1718934283361,3.1671,3528.9,3528.1,3.0]
[1718934283571,2.2991,3528.6,3528.1,3.0]
[1718934283757,2.2991,3528.4,3528.1,3.0]
[1718934284093,2.06199456,3528.3,3528.1,3.0]
[1718934284256,2.2991,3528.4,3528.1,3.0]
[1718934284764,0.08557767,3528.3,3528.1,3.0]
[1718934285083,0.08557767,3528.3,3528.1,4.135842]
[1718934286559,2.2991,3528.8,3528.1,4.135842]
[1718934286774,0.08557767,3528.2,3528.1,4.135842]
[1718934287081,2.2991,3528.8,3528.1,4.135842]
[1718934287286,2.06168573,3528.7,3528.1,1.135842]
[1718934287490,2.14717037,3528.7,3528.1,1.135842]
[1718934287665,2.06168573,3528.6,3528.1,1.135842]
[1718934288403,2.2991,3528.8,3528.1,1.135842]
[1718934288404,0.08548464,3528.5,3528.1,1.135842]
[1718934288684,2.2991,3528.8,3528.1,1.135842]
[1718934288886,0.08548464,3528.4,3528.1,1.135842]
[1718934289184,2.06167652,3528.7,3528.1,1.135842]
[1718934289185,0.08548464,3528.3,3528.1,1.135842]
[1718934289573,2.2991,3528.8,3528.1,1.135842]
[1718934289783,0.08548464,3528.2,3528.1,1.135842]
[1718934290102,2.2991,3528.8,3528.1,1.135842]
[1718934290304,0.08548464,3528.2,3528.1,1.3362262]
[1718934290468,2.2991,3528.8,3528.1,4.3362262]
[1718934290668,0.08548464,3528.2,3528.1,4.3362262]
[1718934291097,2.2991,3528.8,3528.1,4.3362262]
[1718934291290,2.06156518,3528.7,3528.1,4.135842]
[1718934291496,2.14716075,3528.7,3528.2,3.0]
[1718934291690,0.08559557,3528.7,3528.1,1.135842]
[1718934292203,2.06157389,3528.6,3528.1,1.135842]
[1718934292390,2.2991,3528.5,3528.1,1.135842]
[1718934293009,2.14724409,3528.4,3528.1,1.135842]
[1718934293302,0.08550253,3528.4,3528.1,1.135842]
[1718934293506,2.06178477,3528.3,3528.1,1.135842]
[1718934293905,0.08542023,3528.2,3528.1,1.135842]
[1718934294272,2.2991,3528.5,3528.1,1.135842]
[1718934294474,0.08542023,3528.2,3528.1,1.135842]
[1718934294708,2.2991,3528.5,3528.1,1.135842]
[1718934294907,0.08542023,3528.2,3528.1,1.135842]
[1718934295281,2.2991,3528.8,3528.1,1.135842]
[1718934295483,0.08542023,3528.2,3528.1,1.135842]
[1718934295801,0.08541663,3528.2,3528.1,1.135842]
[1718934295978,2.2991,3528.8,3528.1,1.135842]
[1718934296180,0.08541663,3528.2,3528.1,1.135842]
[1718934297083,2.2991,3528.8,3528.1,1.135842]
[1718934297291,0.08541663,3528.2,3528.1,1.135842]
[1718934297486,2.2991,3528.8,3528.1,1.135842]
[1718934297693,0.08541663,3528.2,3528.1,2.003842]
[1718934297876,2.2991,3528.8,3528.1,2.2505562]
[1718934298210,2.06154897,3528.7,3528.1,2.2505562]
[1718934298517,2.14415155,3528.7,3528.1,2.2505562]
[1718934298698,2.06154897,3528.6,3528.1,2.2505562]
[1718934299200,0.08264921,3528.5,3528.1,2.2505562]
[1718934299399,2.2991,3528.8,3528.1,2.2505562]
[1718934299598,0.08264921,3528.4,3528.1,2.2505562]
[1718934299797,2.2991,3528.8,3528.1,2.2505562]
[1718934300011,0.08264921,3528.3,3528.1,2.003842]
[1718934300192,2.2991,3528.8,3528.1,1.135842]
[1718934300387,0.08264921,3528.2,3528.1,2.003842]
[1718934300593,2.2991,3528.8,3528.1,2.003842]
[1718934300817,0.08264921,3528.2,3528.1,2.003842]
[1718934301027,4.37941924,3529.1,3528.1,2.7138562]
[1718934301318,2.0615269,3529.0,3528.2,3.0]
[1718934301524,2.0615269,3529.0,3528.1,2.467142]
[1718934302120,2.0615269,3529.0,3528.3,0.868]
[1718934302327,2.06143974,3528.9,3528.6,0.4633]
[1718934302626,2.2991,3529.4,3528.8,0.868]
[1718934302809,2.06116641,3529.3,3528.8,0.868]
[1718934303623,2.06116641,3529.3,3528.6,0.4633]
[1718934303843,2.06116641,3529.3,3528.7,1.88979191]
[1718934305235,2.0611904,3529.2,3528.7,1.88979191]
[1718934305396,2.2991,3529.4,3528.7,1.88979191]
[1718934305589,2.06118988,3529.3,3528.7,1.88979191]
[1718934307033,2.06118988,3529.3,3528.7,1.02179191]
[1718934308297,0.08274247,3529.2,3528.7,1.02179191]
[1718934308495,2.06123314,3529.1,3528.7,1.02179191]
[1718934309035,0.08274247,3529.0,3528.8,0.48897919]
[1718934309217,2.2991,3529.4,3528.8,0.48897919]
[1718934309387,0.08274247,3528.9,3528.8,0.48897919]
[1718934309724,2.2991,3529.4,3528.8,0.48897919]
[1718934310030,2.14395906,3529.3,3528.7,0.868]
[1718934310316,2.06121659,3529.2,3528.7,0.868]
[1718934310815,0.08274247,3529.1,3528.7,0.868]
[1718934310986,0.08274247,3529.1,3528.5,3.868]
[1718934311187,2.06133336,3529.0,3528.6,1.65859191]
[1718934311385,2.2991,3529.4,3528.6,1.65859191]
[1718934311586,2.06130932,3529.3,3528.6,1.65859191]
[1718934311817,2.06130932,3529.3,3528.6,1.10859191]
[1718934311818,4.20536167,3529.3,3528.6,1.10859191]
[1718934312016,2.14405179,3529.3,3528.5,3.868]
[1718934315113,2.14405179,3529.3,3528.7,0.868]
[1718934315308,2.06130932,3529.3,3528.7,0.868]
[1718934315545,0.08288591,3529.2,3528.7,1.97659191]
[1718934315834,0.08288591,3529.2,3528.7,4.97659191]
[1718934316397,0.08288591,3529.2,3529.0,0.868]
[1718934322836,2.2991,3529.7,3529.0,0.868]
[1718934323043,0.08334486,3529.1,3529.0,0.868]
[1718934323215,2.2991,3529.7,3529.0,1.96198919]
[1718934323415,0.08334846,3529.1,3529.0,1.41198919]
[1718934323743,2.2991,3529.7,3529.0,1.96198919]
[1718934323948,2.2991,3529.7,3529.0,1.41198919]
[1718934324146,2.2991,3529.7,3529.1,0.44119892]
[1718934324446,0.08334846,3529.6,3529.1,0.44119892]
[1718934326238,0.08334846,3529.6,3529.0,0.868]
[1718934329029,2.2991,3529.7,3529.0,0.868]
[1718934329427,2.2991,3529.7,3529.2,0.868]
[1718934329762,0.07913027,3529.6,3529.4,0.868]
[1718934329962,2.2991,3529.9,3529.4,0.868]
[1718934330453,0.07913386,3529.8,3529.4,0.868]
[1718934331260,0.07913386,3529.8,3529.5,0.0422624]
[1718934331660,2.2991,3529.9,3529.4,0.9102624]
[1718934331867,0.07924511,3529.7,3529.4,0.0422624]
[1718934332066,2.2991,3529.9,3528.7,4.10859191]
[1718934332067,2.2991,3529.9,3529.5,0.868]
[1718934332226,0.07926664,3529.6,3529.3,0.868]
[1718934332563,2.2991,3529.9,3529.3,0.868]
[1718934332763,0.07926664,3529.8,3529.3,0.868]
[1718934333661,0.07926664,3529.8,3529.5,0.868]
[1718934334031,2.2991,3530.2,3529.5,0.868]
[1718934334358,0.07926664,3529.7,3529.5,0.868]
[1718934334529,2.2991,3530.2,3529.5,0.868]
[1718934335126,0.07611197,3530.1,3529.8,0.868]
[1718934335430,2.2991,3530.2,3529.8,0.868]
[1718934335631,0.07624834,3530.0,3529.5,1.47056191]
[1718934335846,2.2991,3530.2,3529.8,0.868]
[1718934336133,0.07624834,3529.9,3529.8,0.868]
[1718934336474,2.2991,3530.2,3529.8,1.40185619]
[1718934336846,0.07624834,3530.1,3529.8,0.868]
[1718934337244,2.2991,3530.2,3529.8,0.868]
[1718934337440,0.07624834,3530.0,3529.8,0.868]
[1718934337646,2.2991,3530.2,3529.8,0.868]
[1718934337846,0.07624834,3529.9,3529.8,0.868]
[1718934338044,0.07624834,3529.9,3529.8,1.05552619]
[1718934338243,2.2991,3530.2,3529.8,1.05552619]
[1718934338447,0.07624834,3529.9,3529.8,1.05552619]
[1718934338672,2.2991,3530.2,3529.8,1.05552619]
[1718934338969,0.07624834,3529.9,3529.8,1.05552619]
[1718934339270,2.2991,3530.2,3529.8,1.05552619]
[1718934339469,0.07624834,3529.9,3529.8,1.05552619]
[1718934339670,2.2991,3530.2,3529.8,1.05552619]
[1718934339871,0.07624834,3529.9,3529.8,1.05552619]
[1718934340035,2.2991,3530.2,3529.8,2.19075719]
[1718934340239,0.07624834,3529.9,3529.8,2.19075719]
[1718934340439,2.2991,3530.2,3529.8,2.19075719]
[1718934340768,0.07624834,3529.9,3529.8,1.32275719]
[1718934340956,2.2991,3530.2,3529.8,1.135231]
[1718934341159,0.07632007,3530.1,3529.8,1.135231]
[1718934349160,0.07632007,3530.1,3529.8,2.003231]
[1718934349471,2.2991,3530.5,3529.8,1.135231]
[1718934349668,2.37540574,3530.0,3529.8,1.135231]
[1718934349870,2.2991,3530.0,3529.8,1.135231]
[1718934350076,0.07630574,3529.9,3529.8,1.135231]
[1718934351375,2.2991,3530.2,3529.8,1.135231]
[1718934351680,0.0762806,3530.1,3529.8,1.135231]
[1718934352072,0.0762806,3530.1,3529.8,2.2035541]
[1718934352251,2.2991,3530.4,3529.8,2.2035541]
[1718934352452,0.0762806,3530.0,3529.8,2.2035541]
[1718934352790,2.2991,3530.4,3529.8,2.2035541]
[1718934353152,0.0762806,3530.3,3529.8,2.2035541]
[1718934353469,0.0762806,3530.3,3529.9,0.56668541]
[1718934353668,0.0762806,3530.3,3529.9,3.56668541]
[1718934353990,2.2991,3530.4,3529.9,3.56668541]
[1718934354357,0.0762806,3530.3,3529.9,3.56668541]
[1718934355999,0.0762806,3530.3,3530.0,3.0]
[1718934356360,0.0762806,3530.3,3529.8,1.3355541]
[1718934357182,2.2991,3530.4,3529.8,1.3355541]
[1718934357399,0.0762878,3530.3,3529.8,1.3355541]
[1718934362412,0.0762878,3530.3,3529.9,1.08835541]
[1718934362712,0.0762878,3530.3,3529.9,3.22035541]
[1718934362905,2.2991,3530.6,3530.2,0.868]
[1718934363516,2.2991,3530.6,3529.9,3.22035541]
[1718934363694,2.2991,3530.6,3530.0,1.89988864]
[1718934366121,2.2991,3530.6,3530.2,0.868]
[1718934368324,0.0762842,3530.5,3530.2,0.868]
[1718934369289,0.0762842,3530.5,3530.4,0.868]
[1718934369491,2.2991,3530.8,3530.4,0.868]
[1718934369725,0.07643847,3530.5,3530.4,0.868]
[1718934369934,2.2991,3530.8,3530.4,0.868]
[1718934370089,0.07643847,3530.5,3530.4,0.868]
[1718934370296,2.2991,3530.8,3530.4,0.868]
[1718934370525,0.07643847,3530.5,3530.4,0.868]
[1718934370705,2.2991,3530.8,3530.4,0.868]
[1718934370907,0.07643847,3530.5,3530.4,0.868]
[1718934371110,2.2991,3530.8,3530.4,0.868]
[1718934371607,0.07643847,3530.7,3530.4,0.868]
[1718934371805,2.2991,3530.8,3530.4,0.868]
[1718934372005,2.13665787,3530.7,3530.4,0.868]
[1718934372211,2.0602194,3530.6,3530.4,0.868]
[1718934372625,2.2991,3531.0,3530.4,0.868]
[1718934372626,2.13665241,3530.5,3530.4,0.868]
[1718934372830,2.13665241,3530.5,3530.4,1.418]
[1718934372998,2.13662025,3530.5,3530.4,1.60613]
[1718934373341,0.07643847,3530.5,3530.4,1.60613]
[1718934373698,2.2991,3531.0,3530.4,1.60613]
[1718934373941,0.0765138,3530.5,3530.4,1.60613]
[1718934374124,2.2991,3531.0,3530.4,1.60613]
[1718934374436,2.06018332,3530.9,3530.4,1.60613]
[1718934374615,2.13669712,3530.9,3530.4,1.60613]
[1718934374799,2.06018332,3530.8,3530.5,0.206943]
[1718934375212,2.13669712,3530.7,3530.6,0.868]
[1718934375624,2.13668263,3530.7,3530.6,0.868]
[1718934378142,2.13668263,3530.7,3530.5,0.206943]
[1718934378350,0.0765138,3530.7,3530.5,0.206943]
[1718934378724,2.2991,3531.0,3530.5,0.206943]
[1718934378928,2.2991,3531.0,3530.4,1.60613]
[1718934378929,0.0765138,3530.6,3530.4,1.60613]
[1718934379142,2.2991,3531.0,3530.4,1.60613]
[1718934379344,0.0765138,3530.5,3530.4,1.60613]
[1718934379824,2.2991,3531.0,3530.4,1.60613]
[1718934380062,2.13670324,3530.9,3530.4,1.60613]
[1718934380381,2.06018944,3530.8,3530.5,0.206943]
[1718934380528,2.06018944,3530.8,3530.4,0.55]
[1718934380879,0.0765138,3530.7,3530.4,0.55]
[1718934381023,2.08038335,3531.3,3529.9,3.4633]
[1718934381024,2.2991,3531.1,3529.9,3.0]
[1718934381225,2.13673707,3531.0,3530.4,0.868]
[1718934381526,2.06022327,3530.9,3530.4,0.868]
[1718934381771,2.06017716,3530.8,3530.5,0.05664206]
[1718934381949,2.06017716,3530.8,3530.6,1.418]
[1718934382260,0.07663214,3530.7,3530.6,1.56546421]
[1718934382438,2.08026973,3531.3,3530.6,1.56546421]
[1718934382439,2.2991,3531.3,3530.6,1.56546421]
[1718934382638,2.06006605,3531.2,3530.8,0.868]
[1718934383070,2.06006605,3531.2,3530.7,0.4633]
[1718934383227,2.2991,3532.0,3531.1,0.868]
[1718934383426,2.05974545,3531.9,3531.5,0.868]
[1718934383666,2.05974545,3531.9,3531.4,0.868]
[1718934383984,0.43588455,3531.8,3531.4,0.868]
[1718934384279,0.43588455,3531.8,3530.6,0.55]
[1718934384280,2.2991,3531.6,3530.6,0.55]
[1718934384463,2.05974545,3531.5,3531.1,0.868]
[1718934384778,2.2991,3531.6,3530.8,0.4633]
[1718934384779,2.05990446,3531.4,3530.8,0.4633]
[1718934384951,2.2991,3531.6,3531.1,0.868]
[1718934385159,2.05984384,3531.5,3531.1,0.868]
[1718934387407,2.05984384,3531.5,3530.9,0.55]
[1718934387603,2.05984384,3531.5,3530.9,1.418]
[1718934387751,2.06008313,3531.4,3530.9,1.418]
[1718934387951,2.06008313,3531.3,3530.9,1.418]
[1718934388148,2.2991,3531.6,3530.9,1.418]
[1718934388149,2.06006012,3531.2,3530.9,1.418]
[1718934388366,2.73678229,3531.6,3530.9,1.418]
[1718934388671,2.06007815,3531.5,3530.5,3.0]
[1718934388870,2.06009628,3531.4,3530.8,0.868]
[1718934389078,2.06009628,3531.3,3530.8,0.868]
[1718934389561,2.13697222,3531.2,3530.5,3.0]
[1718934389758,4.3592025,3531.1,3530.6,0.55]
[1718934390000,2.0601025,3531.0,3530.5,3.868]
[1718934390595,2.2991,3531.4,3530.7,0.868]
[1718934391103,2.06006325,3531.3,3530.7,0.868]
[1718934391260,2.13688185,3531.3,3530.7,0.868]
[1718934391457,2.06006325,3531.2,3530.7,0.868]
[1718934391662,2.06008705,3531.1,3530.7,0.868]
[1718934391886,2.2991,3531.4,3530.7,0.868]
[1718934392103,2.0600907,3531.3,3530.7,0.868]
[1718934392297,2.1369093,3531.3,3530.7,0.868]
[1718934392621,2.0600907,3531.2,3530.5,3.0]
[1718934392782,2.0600907,3531.2,3530.5,3.868]
[1718934394110,0.44360093,3531.3,3530.5,3.868]
[1718934394397,2.06020559,3531.2,3530.5,3.868]
[1718934394809,0.0767433,3531.1,3530.5,3.868]
[1718934395011,2.06020559,3531.0,3530.5,3.868]
[1718934395481,2.06020559,3530.9,3530.5,3.868]
[1718934395802,2.2991,3531.4,3530.5,3.868]
[1718934396000,2.58470538,3531.3,3530.5,3.868]
[1718934396204,2.06021614,3531.2,3530.5,3.868]
[1718934397070,0.0767433,3531.1,3530.5,3.868]
[1718934397276,2.06023154,3531.0,3530.5,3.868]
[1718934397572,2.06023154,3530.9,3530.5,3.868]
[1718934397769,2.06023154,3530.8,3530.5,4.87526191]
[1718934398009,4.37769107,3531.4,3530.5,3.868]
[1718934398214,2.06022595,3531.3,3530.5,0.868]
[1718934398416,2.13696925,3531.3,3530.5,0.868]
[1718934398719,2.06022595,3531.2,3530.5,0.868]
[1718934399225,2.13694775,3531.1,3530.5,0.868]
[1718934399393,2.06022595,3531.0,3530.5,0.868]
[1718934400025,2.13694775,3530.9,3530.5,0.868]
[1718934400342,4.37834869,3531.4,3530.7,0.868]
[1718934400626,0.07672537,3530.8,3530.7,0.868]
[1718934400778,2.13694836,3530.8,3530.7,0.868]
[1718934400981,2.06022299,3530.8,3530.7,0.868]
[1718934401402,2.06022299,3531.3,3530.7,0.868]
[1718934401917,0.07672537,3531.2,3530.7,0.868]
[1718934402122,2.06022299,3531.1,3530.5,0.868]
[1718934402593,2.13694836,3531.0,3530.5,0.868]
[1718934402793,2.06022299,3530.9,3530.5,0.868]
[1718934403294,4.37834869,3531.4,3530.5,0.868]
[1718934403295,2.07999788,3531.3,3530.5,0.868]
[1718934403480,0.07672537,3530.8,3530.5,0.868]
[1718934403689,2.06022344,3530.7,3530.5,0.868]
[1718934403901,2.06028723,3530.6,3530.1,3.0]
[1718934404095,2.06028723,3530.6,3530.2,0.55]
[1718934406236,2.2991,3530.7,3530.2,0.55]
[1718934406551,2.06043843,3530.6,3530.3,1.06226191]
[1718934406908,0.07712712,3530.5,3530.3,1.06226191]
[1718934407208,2.06043843,3530.4,3530.3,1.06226191]
[1718934407409,2.06043843,3530.4,3530.3,1.61226191]
[1718934407644,2.13756555,3530.4,3530.1,3.0]
[1718934407951,2.13756555,3530.4,3529.6,7.07261913]
[1718934407952,2.06043843,3530.3,3529.6,7.07261913]
[1718934408303,0.07704107,3530.2,3529.6,7.07261913]
[1718934408503,2.06043843,3530.1,3529.6,7.07261913]
[1718934408718,2.06043843,3530.0,3529.6,7.07261913]
[1718934408931,2.06043843,3530.0,3529.8,4.135231]
[1718934409131,2.1374795,3529.9,3529.8,1.135231]
[1718934409325,2.13781617,3529.9,3529.8,1.135231]
[1718934410124,2.0607751,3529.9,3529.8,1.135231]
[1718934410321,2.1376189,3529.9,3529.8,1.135231]
[1718934412466,2.13768539,3529.9,3529.8,1.135231]
[1718934415566,2.13768991,3529.9,3529.8,1.135231]
[1718934418681,2.13769045,3529.9,3529.8,1.135231]
[1718934419057,0.0768438,3529.9,3529.8,1.135231]
[1718934419262,2.2991,3530.1,3529.8,1.135231]
[1718934419584,0.07657479,3529.9,3529.8,1.135231]
[1718934419786,2.2991,3530.1,3529.8,1.135231]
[1718934419983,0.07657479,3529.9,3529.8,1.135231]
[1718934420278,0.07649587,3529.9,3529.8,1.135231]
[1718934420597,2.2991,3530.1,3529.8,1.135231]
[1718934420784,0.07649587,3529.9,3529.8,1.135231]
[1718934420982,2.2991,3530.1,3529.8,1.135231]
[1718934421323,0.07649587,3529.9,3529.8,1.135231]
[1718934422102,2.2991,3530.1,3529.8,1.135231]
[1718934422301,0.07651741,3529.9,3529.8,1.135231]
[1718934422480,2.2991,3530.1,3529.8,1.135231]
[1718934422681,0.07651741,3529.9,3529.8,1.135231]
[1718934422882,2.2991,3530.1,3529.8,1.135231]
[1718934423183,0.07651741,3529.9,3529.8,1.135231]
[1718934423486,0.07651741,3529.9,3529.3,3.868]
[1718934423487,2.1373848,3529.9,3529.3,3.0]
[1718934423675,2.2991,3530.1,3529.4,1.68531]
[1718934423876,2.06102925,3530.0,3529.4,1.68531]
[1718934424076,2.2991,3529.9,3529.4,1.13531]
[1718934424314,2.2991,3529.7,3529.4,1.13531]
[1718934424516,2.2991,3529.7,3529.3,3.0]
[1718934424517,2.92902925,3529.6,3529.3,3.0]
[1718934424813,2.2991,3529.5,3529.3,3.0]
[1718934425030,2.06125369,3529.4,3529.3,3.0]
[1718934425901,2.58408906,3529.4,3529.3,3.0]
[1718934426107,5.75118906,3529.4,3529.3,3.0]
[1718934426304,2.2991,3529.3,3528.3,6.20461913]
[1718934426496,2.92925369,3529.2,3528.8,1.135611]
[1718934426694,2.06125369,3529.1,3528.8,1.135611]
[1718934426902,2.66750752,3529.1,3528.4,3.0]
[1718934427203,0.868,3529.2,3528.5,1.135629]
[1718934428911,2.2991,3529.3,3528.6,1.418]
[1718934429103,2.2991,3529.3,3528.6,4.418]
[1718934429660,2.2991,3529.3,3528.6,3.0]
[1718934429799,0.868,3529.2,3528.5,1.135629]
[1718934429994,0.94364179,3529.2,3528.5,1.135629]
[1718934430200,2.2991,3529.1,3528.5,1.135629]
[1718934431545,0.868,3529.0,3528.5,1.135629]
[1718934431901,0.868,3529.0,3528.3,6.20461913]
[1718934431902,0.868,3528.8,3528.3,6.20461913]
[1718934432105,2.2991,3528.4,3527.6,6.20461913]
[1718934432302,0.868,3528.3,3527.9,1.135856]
[1718934432812,0.868,3528.3,3527.6,6.20461913]
[1718934433009,0.07566332,3528.2,3527.6,6.20461913]
[1718934433224,0.868,3528.3,3527.6,6.20461913]
[1718934433650,0.868,3528.3,3527.7,4.13592]
[1718934434536,2.2991,3528.4,3527.7,5.25677391]
[1718934436206,2.2991,3528.4,3527.7,4.13592]
[1718934439444,0.868,3528.3,3527.7,4.13592]
[1718934441747,2.2991,3528.4,3527.7,4.13592]
[1718934442046,3.1671,3528.4,3527.7,4.13592]
[1718934443012,2.2991,3528.4,3527.7,4.13592]
[1718934443254,5.73516258,3530.1,3527.7,4.13592]
[1718934443255,2.2991,3529.6,3528.2,0.868]
[1718934443557,0.868,3529.4,3528.2,7.07261913]
[1718934443714,0.07504568,3529.5,3528.3,3.0]
[1718934443715,0.868,3529.3,3528.3,3.0]
[1718934443923,0.868,3529.3,3528.3,3.70726191]
[1718934444432,0.868,3529.1,3528.3,3.70726191]
[1718934444821,2.2991,3529.0,3528.3,3.70726191]
[1718934445161,0.07518933,3528.9,3528.3,3.70726191]
[1718934445552,0.07518933,3528.9,3528.4,0.9911881]
[1718934445718,2.2991,3530.3,3528.4,1.8591881]
[1718934445923,0.07549457,3528.8,3528.5,0.55]
[1718934446124,0.868,3529.5,3528.5,0.55]
[1718934446332,0.07549457,3528.7,3528.5,1.65859191]
[1718934446532,0.868,3529.5,3528.5,4.65859191]
[1718934446737,0.07549457,3528.6,3528.5,4.65859191]
[1718934446947,0.868,3529.5,3528.5,4.65859191]
[1718934447223,0.07549457,3528.6,3528.5,4.65859191]
[1718934447424,0.868,3529.5,3528.5,4.65859191]
[1718934447654,0.31671,3529.4,3528.5,3.55]
[1718934447985,0.94349457,3529.4,3528.6,3.0]
[1718934448257,0.94349457,3529.4,3528.5,0.55]
[1718934448258,0.07549457,3529.4,3528.5,0.55]
[1718934448621,0.868,3529.5,3528.5,0.55]
[1718934448928,0.868,3529.5,3528.5,1.65859191]
[1718934449129,0.07549457,3529.4,3528.5,4.65859191]
[1718934449353,0.868,3529.3,3528.5,4.65859191]
[1718934449762,0.07549457,3529.2,3528.5,4.65859191]
[1718934451952,2.2991,3529.6,3528.5,4.65859191]
[1718934452281,2.2991,3529.6,3528.6,1.46698919]
[1718934452424,3.1671,3529.6,3528.6,4.46698919]
[1718934456279,3.1671,3529.6,3528.6,3.59898919]
[1718934456776,2.45067916,3530.5,3528.6,3.0]
[1718934456777,2.2991,3529.3,3528.6,3.0]
[1718934456945,2.2991,3529.3,3528.3,3.868]